[Event "*** Titled Tuesday Blitz"]
[Site "Chess.com"]
[Date "2020.05.26"]
[Round "4"]
[White "Elbek_Jumanov"]
[Black "Willychess95"]
[Result "1-0"]
[WhiteElo "2410"]
[BlackElo "2584"]
[TimeControl "180+1"]
[EndTime "10:39:11 PDT"]
[Termination "Elbek_Jumanov won by resignation"]

1. c4 {[%clk 0:02:55.5]} 1... c5 {[%clk 0:02:59.1]} 2. Nf3 {[%clk 0:02:55]} 2...
Nf6 {[%clk 0:02:59]} 3. Nc3 {[%clk 0:02:55.1]} 3... d5 {[%clk 0:02:58.7]} 4.
cxd5 {[%clk 0:02:54.2]} 4... Nxd5 {[%clk 0:02:59.6]} 5. g3 {[%clk 0:02:54.8]}
5... Nc6 {[%clk 0:02:57]} 6. Bg2 {[%clk 0:02:54.9]} 6... Nc7 {[%clk 0:02:54]} 7.
O-O {[%clk 0:02:52.2]} 7... e5 {[%clk 0:02:52.8]} 8. d3 {[%clk 0:02:51.3]} 8...
Be7 {[%clk 0:02:51.5]} 9. Be3 {[%clk 0:02:51.3]} 9... O-O {[%clk 0:02:46.6]} 10.
Rc1 {[%clk 0:02:50.5]} 10... Be6 {[%clk 0:02:41.3]} 11. a3 {[%clk 0:02:50.2]}
11... Rc8 {[%clk 0:02:29.6]} 12. Ne4 {[%clk 0:02:48.2]} 12... b6 {[%clk
0:02:19.7]} 13. b4 {[%clk 0:02:47.3]} 13... Nd5 {[%clk 0:02:15.6]} 14. bxc5
{[%clk 0:02:13.8]} 14... Nxe3 {[%clk 0:02:11.5]} 15. fxe3 {[%clk 0:02:13.5]}
15... bxc5 {[%clk 0:02:01]} 16. Nxc5 {[%clk 0:02:10.6]} 16... Bg4 {[%clk
0:02:00.8]} 17. Ne4 {[%clk 0:01:29.7]} 17... Bxa3 {[%clk 0:01:25.1]} 18. Rxc6
{[%clk 0:01:16.9]} 18... Rxc6 {[%clk 0:01:26]} 19. Nxe5 {[%clk 0:01:16.1]} 19...
Rc1 {[%clk 0:00:59.3]} 20. Qb3 {[%clk 0:01:09.6]} 20... Bxe2 {[%clk 0:00:34.6]}
21. Qxa3 {[%clk 0:00:52.1]} 21... Bxf1 {[%clk 0:00:31.4]} 22. Qxc1 {[%clk
0:00:52]} 22... Bxg2 {[%clk 0:00:31.3]} 23. Kxg2 {[%clk 0:00:51.9]} 23... Qb6
{[%clk 0:00:29.2]} 24. Nd7 {[%clk 0:00:43.6]} 24... Qa6 {[%clk 0:00:29.2]} 25.
Nxf8 {[%clk 0:00:40.5]} 25... Qxd3 {[%clk 0:00:29.6]} 26. Nf2 {[%clk 0:00:23.7]}
26... Qd8 {[%clk 0:00:25.6]} 27. Qc5 {[%clk 0:00:23]} 27... Qxf8 {[%clk
0:00:25.4]} 28. Qxf8+ {[%clk 0:00:19.9]} 28... Kxf8 {[%clk 0:00:26.3]} 29. Kf3
{[%clk 0:00:20.8]} 29... Ke7 {[%clk 0:00:26.9]} 30. Ke4 {[%clk 0:00:21.5]} 30...
Kd6 {[%clk 0:00:27.5]} 31. Kd4 {[%clk 0:00:21.7]} 31... Ke6 {[%clk 0:00:25.9]}
32. e4 {[%clk 0:00:21.1]} 32... Kd6 {[%clk 0:00:25.4]} 33. Nd3 {[%clk
0:00:20.4]} 33... a5 {[%clk 0:00:22.2]} 34. Nc5 {[%clk 0:00:19]} 34... f6 {[%clk
0:00:21.3]} 35. Nb7+ {[%clk 0:00:19]} 35... Ke6 {[%clk 0:00:21]} 36. Nxa5 {[%clk
0:00:19.9]} 36... f5 {[%clk 0:00:21.9]} 37. e5 {[%clk 0:00:19.6]} 37... g5
{[%clk 0:00:21.7]} 38. Nb3 {[%clk 0:00:19.4]} 38... f4 {[%clk 0:00:21.6]} 39.
Nc5+ {[%clk 0:00:19.2]} 39... Kf5 {[%clk 0:00:21.8]} 40. gxf4 {[%clk 0:00:19.1]}
40... gxf4 {[%clk 0:00:22.7]} 41. e6 {[%clk 0:00:19.3]} 41... f3 {[%clk
0:00:21.9]} 42. Ke3 {[%clk 0:00:18.9]} 42... Kf6 {[%clk 0:00:21.5]} 43. Kxf3
{[%clk 0:00:18.9]} 43... Ke7 {[%clk 0:00:22.2]} 44. Kf4 {[%clk 0:00:19]} 44...
Kd6 {[%clk 0:00:23.1]} 45. Kf5 {[%clk 0:00:19.3]} 45... h5 {[%clk 0:00:23]} 46.
Kf6 {[%clk 0:00:19.4]} 46... Kxc5 {[%clk 0:00:23.1]} 47. e7 {[%clk 0:00:20]}
47... Kd5 {[%clk 0:00:24]} 48. e8=Q {[%clk 0:00:20.9]} 1-0

[Event "*** Titled Tuesday Blitz"]
[Site "Chess.com"]
[Date "2020.05.26"]
[Round "4"]
[White "Grandelicious"]
[Black "Moon_stone123"]
[Result "1-0"]
[WhiteElo "2789"]
[BlackElo "2523"]
[TimeControl "180+1"]
[EndTime "10:39:12 PDT"]
[Termination "Grandelicious won by resignation"]

1. Nf3 {[%clk 0:03:00.9]} 1... Nf6 {[%clk 0:02:59.6]} 2. g3 {[%clk 0:03:00.5]}
2... g6 {[%clk 0:02:59.8]} 3. Bg2 {[%clk 0:03:00.5]} 3... Bg7 {[%clk 0:03:00.4]}
4. b3 {[%clk 0:03:00.9]} 4... O-O {[%clk 0:02:58.9]} 5. Bb2 {[%clk 0:03:01.1]}
5... d6 {[%clk 0:02:59.5]} 6. d4 {[%clk 0:03:00.7]} 6... c5 {[%clk 0:02:55.8]}
7. O-O {[%clk 0:02:59.1]} 7... Nbd7 {[%clk 0:02:50.7]} 8. c4 {[%clk 0:02:58.1]}
8... cxd4 {[%clk 0:02:40.6]} 9. Nxd4 {[%clk 0:02:59]} 9... Nc5 {[%clk
0:02:25.2]} 10. Nc3 {[%clk 0:02:52.8]} 10... a5 {[%clk 0:02:25.5]} 11. Ndb5
{[%clk 0:02:43.5]} 11... Bd7 {[%clk 0:02:22.8]} 12. e4 {[%clk 0:02:37]} 12...
Bc6 {[%clk 0:02:21.2]} 13. f3 {[%clk 0:02:16.4]} 13... Qb6 {[%clk 0:01:41.6]}
14. Kh1 {[%clk 0:02:15.2]} 14... Ne8 {[%clk 0:01:35.6]} 15. Qe2 {[%clk
0:01:52.2]} 15... Nc7 {[%clk 0:01:33.2]} 16. Rac1 {[%clk 0:01:47.2]} 16... N7a6
{[%clk 0:01:17.4]} 17. Rfd1 {[%clk 0:01:38.2]} 17... a4 {[%clk 0:01:16.6]} 18.
Nd5 {[%clk 0:01:25.3]} 18... Bxd5 {[%clk 0:01:12.4]} 19. exd5 {[%clk 0:01:17.4]}
19... Bxb2 {[%clk 0:01:05.5]} 20. Qxb2 {[%clk 0:01:18.3]} 20... axb3 {[%clk
0:01:03.9]} 21. axb3 {[%clk 0:01:19.2]} 21... Nb4 {[%clk 0:00:55]} 22. Bf1
{[%clk 0:00:56.4]} 22... Rfc8 {[%clk 0:00:41]} 23. Ra1 {[%clk 0:00:48.1]} 23...
Ra6 {[%clk 0:00:38.2]} 24. Rxa6 {[%clk 0:00:45.1]} 24... bxa6 {[%clk 0:00:39.1]}
25. Nd4 {[%clk 0:00:45.5]} 25... a5 {[%clk 0:00:35.3]} 26. Qe2 {[%clk
0:00:36.2]} 26... Re8 {[%clk 0:00:33.2]} 27. Nb5 {[%clk 0:00:24.5]} 27... Nxb3
{[%clk 0:00:29.4]} 28. h4 {[%clk 0:00:20.1]} 28... a4 {[%clk 0:00:23]} 29. h5
{[%clk 0:00:19.2]} 29... a3 {[%clk 0:00:20.2]} 30. Nxa3 {[%clk 0:00:17.2]} 30...
Nd4 {[%clk 0:00:17.4]} 31. Qe3 {[%clk 0:00:17.5]} 31... Qa5 {[%clk 0:00:14.4]}
32. Rxd4 {[%clk 0:00:17.2]} 32... e5 {[%clk 0:00:11.1]} 33. Rd1 {[%clk
0:00:11.3]} 33... Ra8 {[%clk 0:00:08.9]} 34. Nb5 {[%clk 0:00:10]} 34... Nc2
{[%clk 0:00:08.6]} 35. Qf2 {[%clk 0:00:10.1]} 35... Nb4 {[%clk 0:00:05.5]} 36.
Nxd6 {[%clk 0:00:09]} 36... Qc7 {[%clk 0:00:05]} 37. Ne4 {[%clk 0:00:08.7]}
37... f5 {[%clk 0:00:03.5]} 38. d6 {[%clk 0:00:09.2]} 38... Kg7 {[%clk
0:00:04.4]} 39. dxc7 {[%clk 0:00:09.4]} 39... fxe4 {[%clk 0:00:04.5]} 40. fxe4
{[%clk 0:00:08.2]} 40... Ra2 {[%clk 0:00:05.4]} 41. Qxa2 {[%clk 0:00:07.8]}
41... Nxa2 {[%clk 0:00:06.3]} 42. c8=Q {[%clk 0:00:08.4]} 42... Kh6 {[%clk
0:00:06.8]} 43. Qh3 {[%clk 0:00:08.1]} 43... g5 {[%clk 0:00:06.3]} 44. Rd6+
{[%clk 0:00:07.9]} 44... Kg7 {[%clk 0:00:06]} 45. h6+ {[%clk 0:00:08.4]} 1-0

[Event "*** Titled Tuesday Blitz"]
[Site "Chess.com"]
[Date "2020.05.26"]
[Round "4"]
[White "Arjun2002"]
[Black "profofchess"]
[Result "1/2-1/2"]
[WhiteElo "2659"]
[BlackElo "2487"]
[TimeControl "180+1"]
[EndTime "10:39:13 PDT"]
[Termination "Game drawn by repetition"]

1. e4 {[%clk 0:03:00.6]} 1... e6 {[%clk 0:02:59.8]} 2. d4 {[%clk 0:03:00.2]}
2... d5 {[%clk 0:03:00]} 3. Nc3 {[%clk 0:03:00.9]} 3... Bb4 {[%clk 0:02:59.5]}
4. e5 {[%clk 0:03:01.2]} 4... c5 {[%clk 0:02:59.3]} 5. a3 {[%clk 0:03:01.6]}
5... Bxc3+ {[%clk 0:02:59.5]} 6. bxc3 {[%clk 0:03:02.5]} 6... Ne7 {[%clk
0:03:00]} 7. a4 {[%clk 0:02:58.4]} 7... b6 {[%clk 0:02:37.6]} 8. Nf3 {[%clk
0:02:53.8]} 8... Ba6 {[%clk 0:02:34.2]} 9. Bb5+ {[%clk 0:02:53.2]} 9... Bxb5
{[%clk 0:02:34]} 10. axb5 {[%clk 0:02:54.1]} 10... a5 {[%clk 0:02:34.1]} 11.
bxa6 {[%clk 0:02:50.1]} 11... Rxa6 {[%clk 0:02:33.4]} 12. Rxa6 {[%clk
0:02:49.9]} 12... Nxa6 {[%clk 0:02:34.3]} 13. O-O {[%clk 0:02:49.1]} 13... O-O
{[%clk 0:02:22.4]} 14. Ng5 {[%clk 0:02:44.3]} 14... Nf5 {[%clk 0:02:08.4]} 15.
g4 {[%clk 0:02:39.9]} 15... h6 {[%clk 0:01:51.9]} 16. gxf5 {[%clk 0:02:33]}
16... hxg5 {[%clk 0:01:51.2]} 17. Qh5 {[%clk 0:01:38.7]} 17... f6 {[%clk
0:01:39.4]} 18. fxe6 {[%clk 0:01:36.6]} 18... fxe5 {[%clk 0:01:38.4]} 19. Bxg5
{[%clk 0:01:36.5]} 19... Qe8 {[%clk 0:01:38.6]} 20. Qg4 {[%clk 0:01:30.3]} 20...
Qg6 {[%clk 0:01:18.7]} 21. e7 {[%clk 0:01:22]} 21... Re8 {[%clk 0:01:10]} 22. h4
{[%clk 0:01:08.1]} 22... Nc7 {[%clk 0:00:53.1]} 23. dxe5 {[%clk 0:01:06.7]}
23... Rxe7 {[%clk 0:00:36.5]} 24. h5 {[%clk 0:01:04.4]} 24... Qe6 {[%clk
0:00:33.1]} 25. Qxe6+ {[%clk 0:00:58.8]} 25... Rxe6 {[%clk 0:00:33]} 26. f4
{[%clk 0:00:59.4]} 26... Nb5 {[%clk 0:00:28.6]} 27. Rf3 {[%clk 0:00:59.1]} 27...
d4 {[%clk 0:00:25.3]} 28. cxd4 {[%clk 0:00:54.4]} 28... Nxd4 {[%clk 0:00:26.2]}
29. Rf2 {[%clk 0:00:54.6]} 29... b5 {[%clk 0:00:24]} 30. c3 {[%clk 0:00:49.8]}
30... Nf5 {[%clk 0:00:21.8]} 31. Rb2 {[%clk 0:00:49.4]} 31... Rb6 {[%clk
0:00:21.4]} 32. Kf2 {[%clk 0:00:49.1]} 32... Kf7 {[%clk 0:00:21.2]} 33. Kf3
{[%clk 0:00:42]} 33... b4 {[%clk 0:00:20.2]} 34. Bd8 {[%clk 0:00:37.6]} 34...
Rb7 {[%clk 0:00:16.5]} 35. cxb4 {[%clk 0:00:36.8]} 35... cxb4 {[%clk 0:00:16.4]}
36. Ba5 {[%clk 0:00:36]} 36... b3 {[%clk 0:00:16]} 37. Bc3 {[%clk 0:00:36]}
37... Ke6 {[%clk 0:00:13.5]} 38. Ke4 {[%clk 0:00:36.3]} 38... Ng3+ {[%clk
0:00:13.2]} 39. Kd3 {[%clk 0:00:36.5]} 39... Nxh5 {[%clk 0:00:12.8]} 40. Bd2
{[%clk 0:00:35.7]} 40... Ng3 {[%clk 0:00:11.8]} 41. Kc4 {[%clk 0:00:34]} 41...
Ne4 {[%clk 0:00:09.6]} 42. Be3 {[%clk 0:00:33]} 42... Kf5 {[%clk 0:00:08.6]} 43.
Kd5 {[%clk 0:00:25.8]} 43... Nc3+ {[%clk 0:00:07.6]} 44. Kc6 {[%clk 0:00:25.4]}
44... Rb8 {[%clk 0:00:06.1]} 45. Ba7 {[%clk 0:00:17.6]} 45... Nd1 {[%clk
0:00:04.8]} 46. Rb1 {[%clk 0:00:16.9]} 46... Nc3 {[%clk 0:00:03.9]} 47. Rb2
{[%clk 0:00:10.9]} 47... Nd1 {[%clk 0:00:04.1]} 48. Rb1 {[%clk 0:00:10.9]} 48...
Nc3 {[%clk 0:00:04]} 49. Rb2 {[%clk 0:00:09.5]} 1/2-1/2

[Event "*** Titled Tuesday Blitz"]
[Site "Chess.com"]
[Date "2020.05.26"]
[Round "4"]
[White "Blitzking642"]
[Black "Ba_clbaf_osed_ingo_3v21"]
[Result "0-1"]
[WhiteElo "2318"]
[BlackElo "2612"]
[TimeControl "180+1"]
[EndTime "10:39:13 PDT"]
[Termination "Ba_clbaf_osed_ingo_3v21 won on time"]

1. d4 {[%clk 0:03:00.9]} 1... Nf6 {[%clk 0:02:58.5]} 2. c4 {[%clk 0:03:01.3]}
2... g6 {[%clk 0:02:58.7]} 3. Nc3 {[%clk 0:03:01.3]} 3... d5 {[%clk 0:02:59]} 4.
Nf3 {[%clk 0:03:01.7]} 4... Bg7 {[%clk 0:02:58.7]} 5. h4 {[%clk 0:02:58.4]} 5...
c6 {[%clk 0:02:57.1]} 6. cxd5 {[%clk 0:02:57.9]} 6... cxd5 {[%clk 0:02:53.5]} 7.
Bf4 {[%clk 0:02:57.9]} 7... Nc6 {[%clk 0:02:52.5]} 8. e3 {[%clk 0:02:58.2]} 8...
O-O {[%clk 0:02:50.8]} 9. Be2 {[%clk 0:02:57.4]} 9... Bg4 {[%clk 0:02:50]} 10.
Ne5 {[%clk 0:02:56.8]} 10... Bxe2 {[%clk 0:02:48.9]} 11. Qxe2 {[%clk 0:02:56.3]}
11... Nxe5 {[%clk 0:02:48]} 12. Bxe5 {[%clk 0:02:55.8]} 12... h5 {[%clk
0:02:47.3]} 13. Bxf6 {[%clk 0:02:33.5]} 13... Bxf6 {[%clk 0:02:48.2]} 14. g4
{[%clk 0:02:33.4]} 14... hxg4 {[%clk 0:02:44.9]} 15. Qxg4 {[%clk 0:02:30.5]}
15... Kg7 {[%clk 0:02:40]} 16. h5 {[%clk 0:02:22.8]} 16... Rh8 {[%clk
0:02:39.2]} 17. O-O-O {[%clk 0:02:21.6]} 17... Qc8 {[%clk 0:01:56.8]} 18. Qf3
{[%clk 0:01:48.1]} 18... Qc6 {[%clk 0:01:44.7]} 19. hxg6 {[%clk 0:01:41.3]}
19... fxg6 {[%clk 0:01:34.5]} 20. Qxd5 {[%clk 0:01:28.6]} 20... Qc7 {[%clk
0:01:13.1]} 21. Rdg1 {[%clk 0:01:22.5]} 21... Rxh1 {[%clk 0:01:07.8]} 22. Rxh1
{[%clk 0:01:20.5]} 22... e5 {[%clk 0:01:03.1]} 23. Qc5 {[%clk 0:00:52.2]} 23...
Rc8 {[%clk 0:00:59.1]} 24. Qxc7+ {[%clk 0:00:41.7]} 24... Rxc7 {[%clk 0:01:00]}
25. dxe5 {[%clk 0:00:40.5]} 25... Bxe5 {[%clk 0:00:59.4]} 26. Kd2 {[%clk
0:00:39.9]} 26... Rd7+ {[%clk 0:00:56.4]} 27. Kc2 {[%clk 0:00:38.8]} 27... Rc7
{[%clk 0:00:56.7]} 28. Rd1 {[%clk 0:00:34.1]} 28... g5 {[%clk 0:00:52.6]} 29.
Rd5 {[%clk 0:00:31.8]} 29... Kf6 {[%clk 0:00:49.5]} 30. Kd3 {[%clk 0:00:29.1]}
30... Bxc3 {[%clk 0:00:48.7]} 31. bxc3 {[%clk 0:00:28.6]} 31... b6 {[%clk
0:00:45.1]} 32. c4 {[%clk 0:00:28.2]} 32... Rh7 {[%clk 0:00:41]} 33. c5 {[%clk
0:00:23.5]} 33... Ke6 {[%clk 0:00:37]} 34. Rxg5 {[%clk 0:00:21.8]} 34... Rh2
{[%clk 0:00:31.1]} 35. Ke2 {[%clk 0:00:18.1]} 35... bxc5 {[%clk 0:00:24.5]} 36.
Rxc5 {[%clk 0:00:17.3]} 36... Kd6 {[%clk 0:00:24.6]} 37. Ra5 {[%clk 0:00:16.8]}
37... Rh7 {[%clk 0:00:24.8]} 38. e4 {[%clk 0:00:15.7]} 38... Rb7 {[%clk
0:00:19.8]} 39. Ke3 {[%clk 0:00:13.8]} 39... Kc6 {[%clk 0:00:19.7]} 40. e5
{[%clk 0:00:09.8]} 40... Kb6 {[%clk 0:00:19.8]} 41. Ra3 {[%clk 0:00:09.6]} 41...
Kc5 {[%clk 0:00:19.4]} 42. Ke4 {[%clk 0:00:06.9]} 42... Rb2 {[%clk 0:00:11.5]}
43. f4 {[%clk 0:00:06]} 43... Kb6 {[%clk 0:00:09.3]} 44. e6 {[%clk 0:00:04.3]}
44... Kc6 {[%clk 0:00:08.8]} 45. Ke5 {[%clk 0:00:02.9]} 45... Rf2 {[%clk
0:00:07.8]} 46. Ra6+ {[%clk 0:00:01.4]} 46... Kb7 {[%clk 0:00:07.6]} 0-1

[Event "*** Titled Tuesday Blitz"]
[Site "Chess.com"]
[Date "2020.05.26"]
[Round "4"]
[White "Paladin61"]
[Black "Infernal_XaM"]
[Result "0-1"]
[WhiteElo "2628"]
[BlackElo "2834"]
[TimeControl "180+1"]
[EndTime "10:39:14 PDT"]
[Termination "Infernal_XaM won on time"]

1. b3 {[%clk 0:02:57.3]} 1... e5 {[%clk 0:02:55.4]} 2. Bb2 {[%clk 0:02:57.2]}
2... d6 {[%clk 0:02:56]} 3. e3 {[%clk 0:02:56.7]} 3... f5 {[%clk 0:02:56.1]} 4.
d4 {[%clk 0:02:54.8]} 4... e4 {[%clk 0:02:54.7]} 5. c4 {[%clk 0:02:53]} 5... Nf6
{[%clk 0:02:54.9]} 6. Nh3 {[%clk 0:02:51.1]} 6... Nc6 {[%clk 0:02:50]} 7. Nf4
{[%clk 0:02:45.2]} 7... g5 {[%clk 0:01:54.7]} 8. Nh5 {[%clk 0:02:41]} 8... Rg8
{[%clk 0:01:54.8]} 9. Nc3 {[%clk 0:02:29.6]} 9... Bd7 {[%clk 0:01:38.7]} 10.
Nxf6+ {[%clk 0:02:20.3]} 10... Qxf6 {[%clk 0:01:38]} 11. Nd5 {[%clk 0:02:20.4]}
11... Qd8 {[%clk 0:01:15.1]} 12. Qh5+ {[%clk 0:02:17]} 12... Rg6 {[%clk
0:01:14.3]} 13. g4 {[%clk 0:01:34.6]} 13... Kf7 {[%clk 0:00:26.9]} 14. h4 {[%clk
0:01:08]} 14... Ne7 {[%clk 0:00:21.4]} 15. Qxh7+ {[%clk 0:00:54.2]} 15... Bg7
{[%clk 0:00:18.9]} 16. Nc3 {[%clk 0:00:30.6]} 16... Rh6 {[%clk 0:00:17.7]} 17.
hxg5 {[%clk 0:00:22.3]} 17... Rxh7 {[%clk 0:00:17.5]} 18. Rxh7 {[%clk
0:00:22.7]} 18... Qg8 {[%clk 0:00:16.3]} 19. Rh1 {[%clk 0:00:20.4]} 19... fxg4
{[%clk 0:00:16.4]} 20. Nxe4 {[%clk 0:00:20.4]} 20... Bf5 {[%clk 0:00:16.1]} 21.
Ng3 {[%clk 0:00:19.9]} 21... Bg6 {[%clk 0:00:15.8]} 22. Bg2 {[%clk 0:00:20.2]}
22... c6 {[%clk 0:00:15.9]} 23. O-O-O {[%clk 0:00:19]} 23... Ke8 {[%clk
0:00:14.8]} 24. Ne2 {[%clk 0:00:13]} 24... Qf7 {[%clk 0:00:13]} 25. Nf4 {[%clk
0:00:12.6]} 25... Kd7 {[%clk 0:00:13.4]} 26. Rhe1 {[%clk 0:00:07.8]} 26... Rh8
{[%clk 0:00:11.1]} 27. Bf1 {[%clk 0:00:07.3]} 27... Rh2 {[%clk 0:00:09.8]} 28.
Rd2 {[%clk 0:00:06.1]} 28... Kc7 {[%clk 0:00:08.4]} 29. Red1 {[%clk 0:00:03.4]}
29... Be4 {[%clk 0:00:08]} 30. Re1 {[%clk 0:00:02.8]} 30... Ng6 {[%clk
0:00:08.1]} 31. Nd3 {[%clk 0:00:02.5]} 31... Nh4 {[%clk 0:00:07.3]} 32. Red1
{[%clk 0:00:01.7]} 32... Nf3 {[%clk 0:00:07.7]} 33. Rc2 {[%clk 0:00:01.9]} 33...
Qf5 {[%clk 0:00:08.1]} 34. Bc3 {[%clk 0:00:01.7]} 34... Qxg5 {[%clk 0:00:07.7]}
35. Kb1 {[%clk 0:00:01.1]} 35... g3 {[%clk 0:00:07.6]} 36. fxg3 {[%clk
0:00:01.3]} 36... Rxc2 {[%clk 0:00:07.9]} 37. Kxc2 {[%clk 0:00:02]} 37... Qxe3
{[%clk 0:00:08.5]} 38. Be1 {[%clk 0:00:02]} 38... Nxe1+ {[%clk 0:00:07.9]} 0-1

[Event "*** Titled Tuesday Blitz"]
[Site "Chess.com"]
[Date "2020.05.26"]
[Round "4"]
[White "allvim"]
[Black "chessablanca"]
[Result "1-0"]
[WhiteElo "2262"]
[BlackElo "2408"]
[TimeControl "180+1"]
[EndTime "10:39:14 PDT"]
[Termination "allvim won by checkmate"]

1. e4 {[%clk 0:03:00.9]} 1... e5 {[%clk 0:03:00.1]} 2. Nf3 {[%clk 0:03:00.4]}
2... Nc6 {[%clk 0:03:00.5]} 3. Bc4 {[%clk 0:02:59]} 3... Bc5 {[%clk 0:03:00.4]}
4. O-O {[%clk 0:02:58.8]} 4... Nf6 {[%clk 0:02:59.8]} 5. d4 {[%clk 0:02:59.5]}
5... Bxd4 {[%clk 0:02:59.6]} 6. Nxd4 {[%clk 0:02:59.7]} 6... Nxd4 {[%clk
0:03:00.5]} 7. Bg5 {[%clk 0:03:00.2]} 7... d6 {[%clk 0:02:59.9]} 8. f4 {[%clk
0:02:59.3]} 8... Ne6 {[%clk 0:02:59.9]} 9. fxe5 {[%clk 0:02:52.3]} 9... dxe5
{[%clk 0:02:59.8]} 10. Qxd8+ {[%clk 0:02:51.7]} 10... Kxd8 {[%clk 0:02:57.7]}
11. Bxf6+ {[%clk 0:02:51]} 11... gxf6 {[%clk 0:02:57.3]} 12. Rxf6 {[%clk
0:02:51.7]} 12... Ke7 {[%clk 0:02:57.6]} 13. Rf1 {[%clk 0:02:45.5]} 13... Rg8
{[%clk 0:02:54.7]} 14. Nc3 {[%clk 0:02:41.3]} 14... c6 {[%clk 0:02:51.9]} 15.
Rad1 {[%clk 0:02:29.1]} 15... Nf4 {[%clk 0:02:37.8]} 16. g3 {[%clk 0:02:25.9]}
16... Bh3 {[%clk 0:02:37.3]} 17. Rfe1 {[%clk 0:02:02.1]} 17... Bg4 {[%clk
0:02:31]} 18. Rd2 {[%clk 0:01:55.3]} 18... Bf3 {[%clk 0:02:19.9]} 19. Kf2 {[%clk
0:01:41.9]} 19... Bg4 {[%clk 0:01:56.9]} 20. gxf4 {[%clk 0:01:40.5]} 20... exf4
{[%clk 0:01:57.8]} 21. e5 {[%clk 0:01:30.7]} 21... h5 {[%clk 0:01:54.3]} 22. Ne4
{[%clk 0:01:30.5]} 22... Bf5 {[%clk 0:01:50.1]} 23. Nf6 {[%clk 0:01:25.4]} 23...
Rg5 {[%clk 0:01:49.9]} 24. Rg1 {[%clk 0:01:18.2]} 24... Rg6 {[%clk 0:01:36.3]}
25. Nxh5 {[%clk 0:00:59]} 25... Rh8 {[%clk 0:01:34.7]} 26. Rxg6 {[%clk
0:00:49.7]} 26... fxg6 {[%clk 0:01:33.9]} 27. Nxf4 {[%clk 0:00:49.9]} 27...
Rxh2+ {[%clk 0:01:34.3]} 28. Ng2 {[%clk 0:00:49.6]} 28... Be4 {[%clk 0:01:29.2]}
29. Kg3 {[%clk 0:00:46.7]} 29... Rh5 {[%clk 0:01:29.2]} 30. Kf4 {[%clk
0:00:34.8]} 30... Bf5 {[%clk 0:01:15.5]} 31. Ne3 {[%clk 0:00:34.7]} 31... Bc8
{[%clk 0:01:09.3]} 32. Rg2 {[%clk 0:00:32.2]} 32... Rh4+ {[%clk 0:00:51.2]} 33.
Kf3 {[%clk 0:00:26.7]} 33... Rh6 {[%clk 0:00:51.1]} 34. Bd3 {[%clk 0:00:23.3]}
34... Kf7 {[%clk 0:00:49.1]} 35. Ng4 {[%clk 0:00:19.6]} 35... Rh3+ {[%clk
0:00:48.5]} 36. Rg3 {[%clk 0:00:18.7]} 36... Rh1 {[%clk 0:00:48.8]} 37. Nf6
{[%clk 0:00:18.6]} 37... Rh6 {[%clk 0:00:46.5]} 38. Ng4 {[%clk 0:00:17.6]} 38...
Rh1 {[%clk 0:00:45.1]} 39. Ne3 {[%clk 0:00:12.6]} 39... Rh6 {[%clk 0:00:42.3]}
40. Nc4 {[%clk 0:00:13.1]} 40... Be6 {[%clk 0:00:26.6]} 41. Nd6+ {[%clk
0:00:12.7]} 41... Ke7 {[%clk 0:00:26.6]} 42. Rxg6 {[%clk 0:00:11]} 42... Rh3+
{[%clk 0:00:26.5]} 43. Kf2 {[%clk 0:00:09.7]} 43... Bd5 {[%clk 0:00:24.7]} 44.
Rg7+ {[%clk 0:00:09.5]} 44... Kf8 {[%clk 0:00:24.8]} 45. Rxb7 {[%clk 0:00:08.9]}
45... Rh2+ {[%clk 0:00:24]} 46. Ke3 {[%clk 0:00:09.3]} 46... Rh3+ {[%clk
0:00:23.9]} 47. Kf4 {[%clk 0:00:08.9]} 47... Rf3+ {[%clk 0:00:23]} 48. Kg5
{[%clk 0:00:09.5]} 48... a5 {[%clk 0:00:21.7]} 49. Bf5 {[%clk 0:00:09.4]} 49...
c5 {[%clk 0:00:06.2]} 50. Rb8+ {[%clk 0:00:09]} 50... Ke7 {[%clk 0:00:05.9]} 51.
Re8# {[%clk 0:00:09.3]} 1-0

[Event "*** Titled Tuesday Blitz"]
[Site "Chess.com"]
[Date "2020.05.26"]
[Round "4"]
[White "Gogolev_Artemy"]
[Black "albi1999"]
[Result "0-1"]
[WhiteElo "2438"]
[BlackElo "2613"]
[TimeControl "180+1"]
[EndTime "10:39:15 PDT"]
[Termination "albi1999 won on time"]

1. d4 {[%clk 0:02:47.9]} 1... d5 {[%clk 0:02:58.5]} 2. c4 {[%clk 0:02:41.5]}
2... e6 {[%clk 0:02:55.1]} 3. Nf3 {[%clk 0:02:37.9]} 3... Nf6 {[%clk 0:02:54.1]}
4. g3 {[%clk 0:02:38.1]} 4... Bb4+ {[%clk 0:02:51.9]} 5. Nbd2 {[%clk 0:02:34.6]}
5... dxc4 {[%clk 0:02:50.7]} 6. Bg2 {[%clk 0:02:33.9]} 6... b5 {[%clk
0:02:46.8]} 7. Ne5 {[%clk 0:02:30.6]} 7... Nd5 {[%clk 0:02:45.6]} 8. O-O {[%clk
0:02:29.7]} 8... O-O {[%clk 0:02:38.8]} 9. a4 {[%clk 0:02:28.8]} 9... c6 {[%clk
0:02:38.1]} 10. Ne4 {[%clk 0:02:22.2]} 10... f6 {[%clk 0:02:25.3]} 11. Nf3
{[%clk 0:02:13.6]} 11... Nd7 {[%clk 0:02:24.7]} 12. Bd2 {[%clk 0:02:08.9]} 12...
Be7 {[%clk 0:02:11.1]} 13. axb5 {[%clk 0:02:05.5]} 13... cxb5 {[%clk 0:02:09]}
14. Ba5 {[%clk 0:02:03.3]} 14... Qe8 {[%clk 0:02:01.2]} 15. b3 {[%clk
0:02:01.3]} 15... Bb7 {[%clk 0:01:56.9]} 16. bxc4 {[%clk 0:01:58.7]} 16... bxc4
{[%clk 0:01:57.8]} 17. Nfd2 {[%clk 0:01:33.4]} 17... Rc8 {[%clk 0:01:39.7]} 18.
Rc1 {[%clk 0:01:01]} 18... N7b6 {[%clk 0:01:35.5]} 19. Qc2 {[%clk 0:00:45.7]}
19... Qb5 {[%clk 0:01:31.8]} 20. Bxb6 {[%clk 0:00:41.3]} 20... Nxb6 {[%clk
0:01:27.2]} 21. Nc3 {[%clk 0:00:40.7]} 21... Qd7 {[%clk 0:01:26]} 22. Bxb7
{[%clk 0:00:40.2]} 22... Qxb7 {[%clk 0:01:26.9]} 23. Ra1 {[%clk 0:00:38.7]}
23... Rfd8 {[%clk 0:01:24.6]} 24. e3 {[%clk 0:00:38.1]} 24... Nd5 {[%clk
0:01:13.8]} 25. Rfb1 {[%clk 0:00:36.2]} 25... Nb4 {[%clk 0:01:11.6]} 26. Qe4
{[%clk 0:00:23.3]} 26... Qd7 {[%clk 0:01:07.2]} 27. Ra5 {[%clk 0:00:14.9]} 27...
Nd5 {[%clk 0:00:55.5]} 28. Qc2 {[%clk 0:00:12.9]} 28... Nb6 {[%clk 0:00:45.1]}
29. Rba1 {[%clk 0:00:11.9]} 29... Ra8 {[%clk 0:00:38.5]} 30. Nb5 {[%clk
0:00:11.3]} 30... a6 {[%clk 0:00:29]} 31. Nxc4 {[%clk 0:00:11.2]} 31... Nxc4
{[%clk 0:00:25.9]} 32. Qxc4 {[%clk 0:00:11.1]} 32... axb5 {[%clk 0:00:26.3]} 33.
Qb3 {[%clk 0:00:08.8]} 33... Rxa5 {[%clk 0:00:25.3]} 34. Rxa5 {[%clk 0:00:09.7]}
34... b4 {[%clk 0:00:23.1]} 35. h4 {[%clk 0:00:07.4]} 35... Rc8 {[%clk
0:00:19.4]} 36. h5 {[%clk 0:00:05.5]} 36... Rc1+ {[%clk 0:00:18.2]} 37. Kh2
{[%clk 0:00:05.8]} 37... Qb7 {[%clk 0:00:17.9]} 38. Kh3 {[%clk 0:00:03.2]} 38...
Rh1+ {[%clk 0:00:16.6]} 39. Kg4 {[%clk 0:00:03]} 39... Qe4+ {[%clk 0:00:17]} 40.
f4 {[%clk 0:00:03.2]} 40... f5+ {[%clk 0:00:17.2]} 0-1